[Event "FIDE WYCC Open U14 2023"]
[Site "Montesilvano"]
[Date "2023.11.23"]
[Round "10.12"]
[White "Davudov, Tunar"]
[Black "Ljepic, Andrej"]
[Result "1/2-1/2"]
[ECO "B32"]
[WhiteElo "2000"]
[BlackElo "2236"]
[Annotator "RC"]
[PlyCount "98"]
[EventDate "2023.11.13"]
[EventType "swiss"]
[EventCountry "ITA"]
[SourceTitle "playchess.com"]
[Source "ChessBase"]
[SourceQuality "1"]
[TimeControl "40/5400+30:1800+30"]

1. e4 {[%emt 0:00:02]} c5 {[%emt 0:00:06]} 2. Nf3 {[%emt 0:00:23]} Nc6 {[%emt 0:00:12]} 3. d4 {[%emt 0:00:42]} cxd4 {[%emt 0:00:06]} 4. Nxd4 {[%emt 0:00:07]} e5 {[%emt 0:00:07]} 5. Nb5 {[%emt 0:00:57]} d6 {[%emt 0:00:07]} 6. N1c3 {[%emt 0:02:10]} a6 {[%emt 0:00:12]} 7. Na3 {[%emt 0:00:59]} Be6 {[%emt 0:00:08]} 8. Be3 {[%emt 0:06:02]} Rb8 {[%emt 0:00:04]} 9. Nd5 {[%emt 0:05:46]} b5 {[%emt 0:00:14]} 10. c4 {[%emt 0:03:46]} b4 {[%emt 0:02:10]} 11. Nc2 {[%emt 0:00:15]} Nf6 {[%emt 0:00:53]} 12. Nxf6+ {[%emt 0:04:49]} Qxf6 {[%emt 0:02:01]} 13. Bd3 {[%emt 0:04:43]} Qd8 {[%emt 0:02:00]} 14. Qd2 {[%emt 0:03:48]} a5 {[%emt 0:01:09]} 15. b3 {[%emt 0:03:40]} Be7 {[%emt 0:01:33]} 16. O-O {[%emt 0:04:10]} O-O {[%emt 0:03:14]} 17. a3 {[%emt 0:08:58]} bxa3 {[%emt 0:00:56]} 18. Qc3 {[%emt 0:03:52]} Bg5 {[%emt 0:02:56]} 19. Bxg5 {[%emt 0:14:52]} Qxg5 {[%emt 0:00:25]} 20. Kh1 {[%emt 0:01:54]} Rfc8 {[%emt 0:08:11]} 21. Rxa3 {[%emt 0:04:48]} g6 {[%emt 0:00:40]} 22. Be2 {[%emt 0:05:00]} Qe7 {[%emt 0:02:45]} 23. Rd1 {[%emt 0:01:46]} Qa7 {[%emt 0:01:20]} 24. Kg1 {[%emt 0:03:00]} Qc5 {[%emt 0:00:40]} 25. Raa1 {[%emt 0:07:16]} Rb6 {[%emt 0:03:22]} 26. Qd3 {[%emt 0:01:25]} Rd8 {[%emt 0:08:55]} 27. Rd2 {[%emt 0:02:54]} Rd7 {[%emt 0:03:12]} 28. h3 {[%emt 0:00:46]} f5 {[%emt 0:03:19]} 29. Bf3 {[%emt 0:00:53]} Kg7 {[%emt 0:02:35]} 30. exf5 {[%emt 0:01:50]} Bxf5 {[%emt 0:01:06]} 31. Qd5 {[%emt 0:00:23]} Qxd5 {[%emt 0:01:44]} 32. cxd5 {[%emt 0:00:13]} Ne7 {[%emt 0:01:28]} 33. Ne3 {[%emt 0:00:26]} Rxb3 {[%emt 0:00:57]} 34. Rxa5 {[%emt 0:00:18]} Bd3 {[%emt 0:02:11]} 35. g4 {[%emt 0:02:46]} Kf6 {[%emt 0:01:14]} 36. Be2 {[%emt 0:00:46]} Bxe2 {[%emt 0:00:30]} 37. Rxe2 {[%emt 0:00:06]} Rd3 {[%emt 0:00:13]} 38. Rb2 {[%emt 0:00:36]} Kg5 {[%emt 0:00:36]} 39. Kg2 {[%emt 0:01:11]} Kf4 {[%emt 0:01:20]} 40. Rb4+ {[%emt 0:00:00]} Rd4 {[%emt 0:00:00]} 41. Rab5 {[%emt 0:08:41]} Rxb4 {[%emt 0:04:43]} 42. Rxb4+ {[%emt 0:00:07]} e4 {[%emt 0:00:34]} 43. Ra4 {[%emt 0:01:27]} h5 {[%emt 0:05:15]} 44. Ra8 {[%emt 0:02:30]} hxg4 {[%emt 0:01:33]} 45. hxg4 {[%emt 0:03:09]} Ke5 {[%emt 0:01:06]} 46. Ra4 {[%emt 0:01:30]} Kf4 {[%emt 0:05:28]} 47. Ra8 {[%emt 0:00:55]} Rc7 {[%emt 0:01:34]} 48. Ra4 {[%emt 0:06:05]} Rc5 {[%emt 0:06:00]} 49. f3 {[%emt 0:01:02]} Nxd5 {[%emt 0:09:35]} 1/2-1/2

[Event "FIDE WYCC Open U14 2023"]
[Site "Montesilvano"]
[Date "2023.11.23"]
[Round "10.13"]
[White "Rustamov, Rustam"]
[Black "Artemov, Andriy"]
[Result "1-0"]
[ECO "C65"]
[WhiteElo "2229"]
[BlackElo "1779"]
[Annotator "ChessBase"]
[PlyCount "87"]
[EventDate "2023.11.13"]
[EventType "swiss"]
[EventCountry "ITA"]
[SourceTitle "playchess.com"]
[Source "ChessBase"]
[SourceQuality "1"]
[TimeControl "40/5400+30:1800+30"]

1. e4 {[%emt 0:00:03]} e5 {[%emt 0:00:50]} 2. Nf3 {[%emt 0:00:12]} Nc6 {[%emt 0:00:07]} 3. Bb5 {[%emt 0:00:04]} Nf6 {[%emt 0:00:11]} 4. d3 {[%emt 0:00:03]} Bc5 {[%emt 0:00:09]} 5. O-O {[%emt 0:00:15]} Nd4 {[%emt 0:00:10]} 6. Nxd4 {[%emt 0:00:23]} Bxd4 {[%emt 0:00:07]} 7. c3 {[%emt 0:00:04]} Bb6 {[%emt 0:00:06]} 8. Bg5 {[%emt 0:03:08]} c6 {[%emt 0:00:40]} 9. Ba4 {[%emt 0:00:20]} O-O {[%emt 0:00:45]} 10. Kh1 {[%emt 0:02:37]} h6 {[%emt 0:03:08]} 11. Bh4 {[%emt 0:00:21]} d6 {[%emt 0:00:27]} 12. Nd2 {[%emt 0:01:07]} g5 {[%emt 0:08:16]} 13. Bg3 {[%emt 0:00:04]} Qe7 {[%emt 0:02:56]} 14. Nc4 {[%emt 0:00:42]} Bc7 {[%emt 0:00:07]} 15. Ne3 {[%emt 0:00:11]} Be6 {[%emt 0:04:08]} 16. Qf3 {[%emt 0:02:17]} Ne8 {[%emt 0:06:42]} 17. Bc2 {[%emt 0:03:47]} Qf6 {[%emt 0:03:07]} 18. Qe2 {[%emt 0:00:23]} Ng7 {[%emt 0:01:09]} 19. Rad1 {[%emt 0:00:11]} h5 {[%emt 0:06:06]} 20. h3 {[%emt 0:01:04]} Rfe8 {[%emt 0:03:48]} 21. d4 {[%emt 0:01:33]} Rad8 {[%emt 0:00:36]} 22. d5 {[%emt 0:01:24]} Bc8 {[%emt 0:00:24]} 23. b4 {[%emt 0:00:41]} Qg6 {[%emt 0:02:34]} 24. dxc6 {[%emt 0:08:08]} bxc6 {[%emt 0:00:14]} 25. Qc4 {[%emt 0:00:23]} Bb7 {[%emt 0:03:46]} 26. Ba4 {[%emt 0:04:18]} Qe6 {[%emt 0:00:39]} 27. Nd5 {[%emt 0:01:04]} cxd5 {[%emt 0:00:48]} 28. Qxc7 {[%emt 0:00:11]} Qe7 {[%emt 0:00:07]} 29. Qa5 {[%emt 0:02:27]} dxe4 {[%emt 0:01:43]} 30. Bxe8 {[%emt 0:00:37]} Rxe8 {[%emt 0:00:07]} 31. Kg1 {[%emt 0:00:53]} f5 {[%emt 0:00:46]} 32. Bxe5 {[%emt 0:05:12]} Qxe5 {[%emt 0:12:19]} 33. Qxe5 {[%emt 0:00:24]} Rxe5 {[%emt 0:00:28]} 34. Rxd6 {[%emt 0:00:11]} Bd5 {[%emt 0:00:16]} 35. Rd1 {[%emt 0:00:31]} Bxa2 {[%emt 0:01:36]} 36. Ra6 {[%emt 0:01:27]} Be6 {[%emt 0:01:41]} 37. Rxa7 {[%emt 0:01:48]} f4 {[%emt 0:00:15]} 38. Ra5 {[%emt 0:01:29]} Rxa5 {[%emt 0:00:18]} 39. bxa5 {[%emt 0:00:02]} Bc4 {[%emt 0:13:01]} 40. Rd4 {[%emt 0:00:00]} Ba6 {[%emt 0:00:00]} 41. Rd6 {[%emt 0:01:35]} Bb5 {[%emt 0:01:07]} 42. a6 {[%emt 0:00:36]} Ne8 {[%emt 0:00:11]} 43. a7 {[%emt 0:00:29]} Nc7 {[%emt 0:00:02]} 44. Rb6 {[%emt 0:00:16]} 1-0

[Event "FIDE WYCC Open U14 2023"]
[Site "Montesilvano"]
[Date "2023.11.23"]
[Round "10.14"]
[White "Tregubenko, Nikolay"]
[Black "Tabuenca Mendataurigoitia, Daniel"]
[Result "0-1"]
[ECO "C41"]
[WhiteElo "2138"]
[BlackElo "2383"]
[Annotator "RC"]
[PlyCount "96"]
[EventDate "2023.11.13"]
[EventType "swiss"]
[EventCountry "ITA"]
[SourceTitle "playchess.com"]
[Source "ChessBase"]
[SourceQuality "1"]
[TimeControl "40/5400+30:1800+30"]

1. e4 {[%emt 0:04:21]} e5 {[%emt 0:00:17]} 2. Nf3 {[%emt 0:00:09]} d6 {[%emt 0:00:06]} 3. d4 {[%emt 0:03:24]} exd4 {[%emt 0:00:07]} 4. Nxd4 {[%emt 0:00:05]} Nf6 {[%emt 0:00:07]} 5. Nc3 {[%emt 0:00:07]} Be7 {[%emt 0:00:09]} 6. Be2 {[%emt 0:03:25]} O-O {[%emt 0:00:17]} 7. O-O {[%emt 0:00:07]} Re8 {[%emt 0:00:09]} 8. f4 {[%emt 0:08:32]} Bf8 {[%emt 0:00:20]} 9. Bf3 {[%emt 0:01:12]} c5 {[%emt 0:00:21]} 10. Nb3 {[%emt 0:01:52]} Nc6 {[%emt 0:00:22]} 11. Kh1 {[%emt 0:03:08]} a5 {[%emt 0:04:50]} 12. a4 {[%emt 0:02:17]} Nb4 {[%emt 0:01:46]} 13. Be3 {[%emt 0:13:29]} Bd7 {[%emt 0:07:02]} 14. Re1 {[%emt 0:04:56]} Bc6 {[%emt 0:05:36]} 15. Bf2 {[%emt 0:00:21]} b6 {[%emt 0:14:22]} 16. Qd2 {[%emt 0:05:29]} Qd7 {[%emt 0:07:08]} 17. Nc1 {[%emt 0:15:34]} Qb7 {[%emt 0:03:33]} 18. Qe2 {[%emt 0:07:02]} Nxe4 {[%emt 0:12:41]} 19. Nxe4 {[%emt 0:02:20]} d5 {[%emt 0:01:46]} 20. Nf6+ {[%emt 0:00:20]} gxf6 {[%emt 0:00:06]} 21. Qd2 {[%emt 0:00:19]} Rxe1+ {[%emt 0:04:01]} 22. Bxe1 {[%emt 0:00:07]} Re8 {[%emt 0:04:07]} 23. Bh4 {[%emt 0:03:08]} d4 {[%emt 0:03:22]} 24. Qf2 {[%emt 0:05:01]} Bg7 {[%emt 0:01:57]} 25. Bxc6 {[%emt 0:02:08]} Qxc6 {[%emt 0:00:25]} 26. c3 {[%emt 0:02:06]} dxc3 {[%emt 0:02:58]} 27. bxc3 {[%emt 0:00:01]} f5 {[%emt 0:00:48]} 28. Ne2 {[%emt 0:01:10]} Nd3 {[%emt 0:02:29]} 29. Qf1 {[%emt 0:00:02]} c4 {[%emt 0:03:00]} 30. Bf2 {[%emt 0:00:04]} Qe4 {[%emt 0:05:21]} 31. Ng3 {[%emt 0:00:31]} Nxf2+ {[%emt 0:02:56]} 32. Qxf2 {[%emt 0:00:01]} Qe3 {[%emt 0:00:07]} 33. Qxe3 {[%emt 0:02:33]} Rxe3 {[%emt 0:00:01]} 34. Nxf5 {[%emt 0:00:09]} Rxc3 {[%emt 0:00:03]} 35. Re1 {[%emt 0:01:24]} Kf8 {[%emt 0:00:07]} 36. Nd6 {[%emt 0:03:30]} Bd4 {[%emt 0:01:15]} 37. g4 {[%emt 0:01:57]} Bc5 {[%emt 0:00:41]} 38. Re8+ {[%emt 0:00:30]} Kg7 {[%emt 0:00:01]} 39. Ne4 {[%emt 0:03:28]} Re3 {[%emt 0:01:07]} 40. f5 {[%emt 0:00:00]} h6 {[%emt 0:00:00]} 41. f6+ {[%emt 0:06:01]} Kh7 {[%emt 0:03:04]} 42. g5 {[%emt 0:00:53]} c3 {[%emt 0:00:46]} 43. g6+ Kxg6 {[%emt 0:00:11]} 44. Rg8+ {[%emt 0:01:05]} Kf5 {[%emt 0:00:13]} 45. Nxc5 {[%emt 0:00:41]} c2 {[%emt 0:01:06]} 46. Rg1 {[%emt 0:00:23]} bxc5 {[%emt 0:00:06]} 47. Rc1 {[%emt 0:00:04]} Re2 {[%emt 0:00:04]} 48. Kg1 {[%emt 0:00:03]} Rd2 {[%emt 0:00:03]} 0-1

[Event "FIDE WYCC Open U14 2023"]
[Site "Montesilvano"]
[Date "2023.11.23"]
[Round "10.15"]
[White "Villa Tornero, Alex"]
[Black "kiladze, Luka"]
[Result "0-1"]
[ECO "B31"]
[WhiteElo "2383"]
[BlackElo "2145"]
[Annotator "RC"]
[PlyCount "81"]
[EventDate "2023.11.13"]
[EventType "swiss"]
[EventCountry "ITA"]
[SourceTitle "playchess.com"]
[Source "ChessBase"]
[SourceQuality "1"]
[TimeControl "40/5400+30:1800+30"]

1. e4 {[%emt 0:00:29]} c5 {[%emt 0:00:02]} 2. Nf3 {[%emt 0:00:15]} Nc6 {[%emt 0:00:03]} 3. Bb5 {[%emt 0:00:42]} g6 {[%emt 0:00:16]} 4. O-O {[%emt 0:00:10]} Bg7 {[%emt 0:00:02]} 5. Re1 {[%emt 0:00:24]} Nf6 {[%emt 0:00:13]} 6. e5 {[%emt 0:02:51]} Nd5 {[%emt 0:00:11]} 7. Nc3 {[%emt 0:00:18]} Nc7 {[%emt 0:00:01]} 8. Bxc6 {[%emt 0:00:29]} dxc6 {[%emt 0:00:07]} 9. h3 {[%emt 0:08:40]} O-O {[%emt 0:01:38]} 10. d3 {[%emt 0:00:06]} b6 {[%emt 0:04:30]} 11. a4 {[%emt 0:02:51]} a5 {[%emt 0:03:34]} 12. Be3 {[%emt 0:08:22]} h6 {[%emt 0:06:24]} 13. d4 {[%emt 0:16:01]} c4 {[%emt 0:04:16]} 14. d5 {[%emt 0:03:10]} Nxd5 {[%emt 0:03:13]} 15. Nxd5 {[%emt 0:02:43]} cxd5 {[%emt 0:01:05]} 16. Qd4 {[%emt 0:01:03]} Bf5 {[%emt 0:04:43]} 17. Ra3 {[%emt 0:05:14]} e6 {[%emt 0:12:14]} 18. Qd2 {[%emt 0:01:04]} g5 {[%emt 0:07:28]} 19. Nxg5 {[%emt 0:25:38]} hxg5 {[%emt 0:25:55]} 20. Bxg5 {[%emt 0:00:09]} f6 {[%emt 0:00:15]} 21. exf6 {[%emt 0:06:13]} Bxf6 {[%emt 0:00:08]} 22. Rg3 {[%emt 0:00:56]} Kh8 {[%emt 0:08:32]} 23. Be3 {[%emt 0:06:48]} d4 {[%emt 0:03:25]} 24. Bf4 {[%emt 0:00:12]} Ra7 {[%emt 0:01:56]} 25. Be5 {[%emt 0:01:15]} d3 {[%emt 0:02:55]} 26. cxd3 {[%emt 0:01:11]} cxd3 {[%emt 0:00:22]} 27. Rg5 {[%emt 0:01:34]} Bxe5 {[%emt 0:02:05]} 28. Rxe5 {[%emt 0:00:05]} Qf6 {[%emt 0:00:56]} 29. f4 {[%emt 0:01:28]} Bh7 {[%emt 0:01:51]} 30. g3 {[%emt 0:01:28]} Rc7 {[%emt 0:01:48]} 31. Rh5 {[%emt 0:00:27]} Qd8 {[%emt 0:00:56]} 32. Rxe6 {[%emt 0:01:07]} Qd4+ {[%emt 0:01:05]} 33. Kh1 {[%emt 0:00:34]} Rc5 {[%emt 0:03:37]} 34. f5 {[%emt 0:01:36]} Qd5+ {[%emt 0:01:08]} 35. Kg1 {[%emt 0:00:01]} Qd4+ {[%emt 0:00:14]} 36. Kh1 {[%emt 0:00:01]} Rc7 {[%emt 0:00:37]} 37. f6 {[%emt 0:01:05]} Qc4 {[%emt 0:00:25]} 38. Re7 {[%emt 0:00:54]} Rxe7 {[%emt 0:00:41]} 39. fxe7 {[%emt 0:00:01]} Qe4+ {[%emt 0:00:29]} 40. Kg1 {[%emt 0:00:00]} Qd4+ {[%emt 0:00:00]} 41. Kh1 {[%emt 0:02:26]} 0-1

[Event "FIDE WYCC Open U14 2023"]
[Site "Montesilvano"]
[Date "2023.11.23"]
[Round "10.16"]
[White "Goh, Zi Han"]
[Black "Tao, Sihan"]
[Result "1/2-1/2"]
[ECO "E06"]
[WhiteElo "2333"]
[BlackElo "2122"]
[Annotator "RC"]
[PlyCount "116"]
[EventDate "2023.11.13"]
[EventType "swiss"]
[EventCountry "ITA"]
[SourceTitle "playchess.com"]
[Source "ChessBase"]
[SourceQuality "1"]
[TimeControl "40/5400+30:1800+30"]

1. d4 {[%emt 0:00:57]} Nf6 {[%emt 0:00:20]} 2. c4 {[%emt 0:00:24]} e6 {[%emt 0:00:19]} 3. g3 {[%emt 0:00:27]} d5 {[%emt 0:01:03]} 4. Nf3 Be7 {[%emt 0:00:26]} 5. Bg2 {[%emt 0:00:33]} O-O {[%emt 0:00:32]} 6. Nc3 {[%emt 0:00:56]} dxc4 {[%emt 0:00:21]} 7. Ne5 {[%emt 0:00:19]} Nc6 {[%emt 0:00:24]} 8. Bxc6 {[%emt 0:03:12]} bxc6 {[%emt 0:00:17]} 9. Nxc6 {[%emt 0:00:11]} Qe8 {[%emt 0:00:22]} 10. Nxe7+ {[%emt 0:00:28]} Qxe7 {[%emt 0:00:09]} 11. Qa4 {[%emt 0:01:16]} c5 {[%emt 0:01:07]} 12. dxc5 {[%emt 0:01:43]} Qxc5 {[%emt 0:00:38]} 13. Be3 {[%emt 0:00:20]} Qc7 {[%emt 0:00:12]} 14. f3 {[%emt 0:02:02]} Nd5 {[%emt 0:04:56]} 15. Nxd5 {[%emt 0:01:57]} exd5 {[%emt 0:00:08]} 16. Bd4 {[%emt 0:00:59]} Qd7 {[%emt 0:07:50]} 17. Qxd7 {[%emt 0:10:18]} Bxd7 {[%emt 0:00:06]} 18. Rd1 {[%emt 0:00:39]} Be6 {[%emt 0:04:34]} 19. Kf2 {[%emt 0:01:12]} f6 {[%emt 0:07:34]} 20. Bc3 {[%emt 0:04:01]} Rab8 {[%emt 0:02:33]} 21. g4 {[%emt 0:03:48]} h5 {[%emt 0:10:48]} 22. gxh5 {[%emt 0:06:58]} Kf7 {[%emt 0:03:28]} 23. h6 {[%emt 0:02:24]} gxh6 {[%emt 0:01:14]} 24. Rhg1 {[%emt 0:07:17]} Rg8 {[%emt 0:01:26]} 25. Rg3 {[%emt 0:02:56]} Rg6 {[%emt 0:02:01]} 26. Rd4 {[%emt 0:02:12]} Rbg8 {[%emt 0:25:57]} 27. Rh4 {[%emt 0:02:40]} a6 {[%emt 0:02:25]} 28. Bd2 {[%emt 0:03:32]} Bf5 {[%emt 0:11:15]} 29. Rxg6 {[%emt 0:10:27]} Bxg6 {[%emt 0:00:02]} 30. Bc3 {[%emt 0:02:14]} h5 {[%emt 0:01:19]} 31. Rf4 {[%emt 0:01:13]} f5 {[%emt 0:00:06]} 32. e4 {[%emt 0:12:02]} dxe4 {[%emt 0:00:33]} 33. fxe4 {[%emt 0:00:07]} Bh7 {[%emt 0:00:09]} 34. exf5 {[%emt 0:02:21]} Rg4 {[%emt 0:00:07]} 35. Kf3 {[%emt 0:05:57]} Rg5 {[%emt 0:02:52]} 36. f6 {[%emt 0:02:03]} Rf5 {[%emt 0:00:06]} 37. Rxf5 {[%emt 0:01:14]} Bxf5 {[%emt 0:00:04]} 38. Kf4 {[%emt 0:00:21]} Bd7 {[%emt 0:00:26]} 39. Ke5 {[%emt 0:02:01]} Bb5 {[%emt 0:00:41]} 40. h4 {[%emt 0:00:00]} Bd7 {[%emt 0:00:00]} 41. Kd6 {[%emt 0:03:56]} Bb5 {[%emt 0:00:37]} 42. Kd5 {[%emt 0:00:35]} Ke8 {[%emt 0:00:10]} 43. Ke6 {[%emt 0:10:16]} Bd7+ {[%emt 0:00:24]} 44. Ke5 {[%emt 0:00:08]} Kf7 {[%emt 0:00:19]} 45. Kd6 {[%emt 0:00:05]} Bb5 {[%emt 0:00:17]} 46. Kd5 {[%emt 0:00:12]} Ke8 {[%emt 0:00:08]} 47. Ke5 {[%emt 0:00:08]} Kf7 {[%emt 0:00:51]} 48. Kf5 {[%emt 0:00:10]} Bd7+ {[%emt 0:00:09]} 49. Kf4 {[%emt 0:00:14]} Bc8 {[%emt 0:00:39]} 50. Ke3 {[%emt 0:01:00]} Bd7 {[%emt 0:00:08]} 51. Bd4 {[%emt 0:00:03]} Be8 {[%emt 0:00:17]} 52. Kd2 {[%emt 0:00:24]} Bd7 {[%emt 0:00:14]} 53. Kc3 {[%emt 0:00:05]} Bb5 {[%emt 0:00:04]} 54. Kb4 {[%emt 0:00:05]} Ke6 {[%emt 0:00:08]} 55. a4 {[%emt 0:00:07]} Be8 {[%emt 0:00:20]} 56. Ka5 {[%emt 0:00:51]} Kf7 {[%emt 0:00:09]} 57. Kxa6 {[%emt 0:01:44]} Bxa4 {[%emt 0:00:01]} 58. Ka5 {[%emt 0:00:06]} Bd1 {[%emt 0:00:19]} 1/2-1/2

[Event "FIDE WYCC Open U14 2023"]
[Site "Montesilvano"]
[Date "2023.11.23"]
[Round "10.17"]
[White "Lin, Leo"]
[Black "Lissillour, Baptiste"]
[Result "1-0"]
[ECO "B22"]
[WhiteElo "2097"]
[BlackElo "2298"]
[Annotator "RC"]
[PlyCount "47"]
[EventDate "2023.11.13"]
[EventType "swiss"]
[EventCountry "ITA"]
[SourceTitle "playchess.com"]
[Source "ChessBase"]
[SourceQuality "1"]
[TimeControl "40/5400+30:1800+30"]

1. e4 {[%emt 0:00:02]} c5 {[%emt 0:00:04]} 2. c3 {[%emt 0:00:13]} d5 {[%emt 0:00:06]} 3. exd5 {[%emt 0:00:06]} Nf6 {[%emt 0:00:06]} 4. c4 {[%emt 0:01:24]} e6 {[%emt 0:00:13]} 5. dxe6 {[%emt 0:00:48]} Bxe6 {[%emt 0:00:05]} 6. Nf3 {[%emt 0:01:56]} Qe7 {[%emt 0:00:28]} 7. Be2 {[%emt 0:04:07]} Bxc4 {[%emt 0:00:36]} 8. d3 {[%emt 0:00:12]} Be6 {[%emt 0:00:19]} 9. O-O {[%emt 0:01:25]} Nc6 {[%emt 0:03:27]} 10. Nc3 {[%emt 0:04:57]} Qc7 {[%emt 0:03:43]} 11. Nb5 {[%emt 0:09:42]} Qd7 {[%emt 0:02:33]} 12. Bf4 {[%emt 0:14:29]} Rc8 {[%emt 0:06:15]} 13. Ng5 {[%emt 0:03:14]} Bf5 {[%emt 0:20:39]} 14. Bh5 {[%emt 0:23:14]} Nxh5 {[%emt 0:03:48]} 15. Qxh5 {[%emt 0:05:46]} Bg6 {[%emt 0:00:21]} 16. Qe2+ {[%emt 0:03:35]} Kd8 {[%emt 0:00:04]} 17. Rad1 {[%emt 0:05:05]} a6 {[%emt 0:02:12]} 18. d4 {[%emt 0:06:07]} c4 {[%emt 0:09:30]} 19. d5 {[%emt 0:00:56]} Nb4 {[%emt 0:15:53]} 20. Ne6+ {[%emt 0:00:58]} fxe6 {[%emt 0:02:11]} 21. dxe6 {[%emt 0:00:19]} Qd3 {[%emt 0:00:07]} 22. Qe5 {[%emt 0:05:30]} Rc6 {[%emt 0:07:26]} 23. Rxd3+ {[%emt 0:00:08]} cxd3 {[%emt 0:02:49]} 24. Bg5+ {[%emt 0:00:17]} 1-0

[Event "FIDE WYCC Open U14 2023"]
[Site "Montesilvano"]
[Date "2023.11.23"]
[Round "10.18"]
[White "Vingris, Mikelis"]
[Black "Matyassy, Lazar"]
[Result "1/2-1/2"]
[ECO "B89"]
[WhiteElo "2127"]
[BlackElo "2281"]
[Annotator "RC"]
[PlyCount "73"]
[EventDate "2023.11.13"]
[EventType "swiss"]
[EventCountry "ITA"]
[SourceTitle "playchess.com"]
[Source "ChessBase"]
[SourceQuality "1"]
[TimeControl "40/5400+30:1800+30"]

1. e4 {[%emt 0:04:11]} c5 {[%emt 0:00:05]} 2. Nf3 {[%emt 0:00:04]} d6 {[%emt 0:00:05]} 3. d4 {[%emt 0:00:03]} cxd4 {[%emt 0:00:07]} 4. Nxd4 {[%emt 0:00:09]} Nf6 {[%emt 0:00:05]} 5. Nc3 {[%emt 0:00:04]} Nc6 {[%emt 0:00:05]} 6. Bc4 {[%emt 0:00:06]} e6 {[%emt 0:00:10]} 7. Be3 {[%emt 0:00:28]} a6 {[%emt 0:00:18]} 8. Qe2 {[%emt 0:01:23]} Bd7 {[%emt 0:00:37]} 9. O-O-O {[%emt 0:15:50]} b5 {[%emt 0:00:49]} 10. Bb3 {[%emt 0:03:07]} Na5 {[%emt 0:00:23]} 11. f3 {[%emt 0:19:57]} Be7 {[%emt 0:01:45]} 12. g4 {[%emt 0:00:59]} O-O {[%emt 0:00:38]} 13. g5 {[%emt 0:05:39]} Ne8 {[%emt 0:11:47]} 14. h4 {[%emt 0:06:16]} Nc7 {[%emt 0:07:27]} 15. Rdg1 {[%emt 0:04:30]} Qe8 {[%emt 0:12:09]} 16. f4 {[%emt 0:18:10]} b4 {[%emt 0:07:41]} 17. Nb1 {[%emt 0:02:55]} Nb5 {[%emt 0:09:35]} 18. g6 {[%emt 0:07:43]} Nxb3+ {[%emt 0:03:52]} 19. axb3 {[%emt 0:02:47]} fxg6 {[%emt 0:02:17]} 20. h5 {[%emt 0:03:46]} g5 {[%emt 0:14:52]} 21. Nxb5 {[%emt 0:02:09]} Bxb5 {[%emt 0:02:03]} 22. Qg4 {[%emt 0:00:06]} Bf6 {[%emt 0:00:36]} 23. e5 {[%emt 0:00:31]} dxe5 {[%emt 0:01:18]} 24. fxg5 {[%emt 0:00:15]} Bd8 {[%emt 0:00:17]} 25. Qxb4 {[%emt 0:01:07]} Rf3 {[%emt 0:02:19]} 26. Bd2 {[%emt 0:00:19]} Rc8 {[%emt 0:06:55]} 27. Nc3 {[%emt 0:00:28]} Qc6 {[%emt 0:00:29]} 28. Re1 {[%emt 0:00:47]} Bb6 {[%emt 0:02:41]} 29. h6 {[%emt 0:00:37]} g6 {[%emt 0:04:20]} 30. Qg4 {[%emt 0:00:33]} Bd4 {[%emt 0:00:57]} 31. Rh3 {[%emt 0:00:24]} Rf2 {[%emt 0:01:00]} 32. Qe4 {[%emt 0:00:27]} Qd7 {[%emt 0:02:47]} 33. Be3 {[%emt 0:00:34]} Bc6 {[%emt 0:01:55]} 34. Qd3 {[%emt 0:00:18]} Bb5 {[%emt 0:00:16]} 35. Qe4 {[%emt 0:00:23]} Bc6 {[%emt 0:00:05]} 36. Qd3 {[%emt 0:00:04]} Bb5 {[%emt 0:00:04]} 37. Qe4 {[%emt 0:00:50]} 1/2-1/2

[Event "FIDE WYCC Open U14 2023"]
[Site "Montesilvano"]
[Date "2023.11.23"]
[Round "10.19"]
[White "Averin, Nikolay"]
[Black "Medhus, Vitus Bondo"]
[Result "1/2-1/2"]
[ECO "C88"]
[WhiteElo "2270"]
[BlackElo "2108"]
[Annotator "RC"]
[PlyCount "83"]
[EventDate "2023.11.13"]
[EventType "swiss"]
[EventCountry "ITA"]
[SourceTitle "playchess.com"]
[Source "ChessBase"]
[SourceQuality "1"]
[TimeControl "40/5400+30:1800+30"]

1. e4 {[%emt 0:02:06]} e5 {[%emt 0:00:03]} 2. Nf3 {[%emt 0:00:05]} Nc6 {[%emt 0:00:05]} 3. Bb5 {[%emt 0:00:03]} a6 {[%emt 0:00:08]} 4. Ba4 {[%emt 0:00:02]} Nf6 {[%emt 0:00:07]} 5. O-O {[%emt 0:01:48]} Be7 {[%emt 0:00:08]} 6. Re1 {[%emt 0:00:19]} b5 {[%emt 0:00:06]} 7. Bb3 {[%emt 0:00:03]} O-O {[%emt 0:00:08]} 8. h3 {[%emt 0:00:20]} Bb7 {[%emt 0:00:23]} 9. c3 {[%emt 0:09:58]} d5 {[%emt 0:00:53]} 10. exd5 {[%emt 0:00:15]} Nxd5 {[%emt 0:00:08]} 11. d3 {[%emt 0:01:40]} Qd7 {[%emt 0:00:59]} 12. Bc2 {[%emt 0:20:04]} Rad8 {[%emt 0:04:03]} 13. Nxe5 {[%emt 0:31:31]} Nxe5 {[%emt 0:00:12]} 14. Rxe5 {[%emt 0:00:02]} Bf6 {[%emt 0:00:30]} 15. Re1 {[%emt 0:03:26]} c5 {[%emt 0:02:32]} 16. Nd2 {[%emt 0:03:28]} Qc6 {[%emt 0:06:46]} 17. Ne4 {[%emt 0:17:01]} Nxc3 {[%emt 0:19:50]} 18. Nxf6+ {[%emt 0:01:18]} gxf6 {[%emt 0:00:08]} 19. Qg4+ {[%emt 0:01:56]} Kh8 {[%emt 0:00:07]} 20. bxc3 {[%emt 0:00:19]} Rg8 {[%emt 0:00:21]} 21. Qe4 {[%emt 0:00:03]} Rde8 {[%emt 0:00:49]} 22. Bf4 {[%emt 0:04:07]} Rxe4 {[%emt 0:02:32]} 23. dxe4 {[%emt 0:00:00]} Qe6 {[%emt 0:03:07]} 24. Bg3 {[%emt 0:00:54]} Rd8 {[%emt 0:01:07]} 25. e5 {[%emt 0:01:07]} Re8 {[%emt 0:26:08]} 26. Re3 {[%emt 0:01:01]} fxe5 {[%emt 0:00:27]} 27. Bxe5+ {[%emt 0:00:32]} Qxe5 {[%emt 0:00:33]} 28. Rxe5 {[%emt 0:00:03]} Rxe5 {[%emt 0:00:09]} 29. Kf1 {[%emt 0:00:24]} h5 {[%emt 0:01:13]} 30. Rd1 {[%emt 0:00:32]} Bd5 {[%emt 0:03:23]} 31. Bb3 {[%emt 0:00:20]} c4 {[%emt 0:07:18]} 32. Bc2 {[%emt 0:00:13]} a5 {[%emt 0:02:41]} 33. a3 {[%emt 0:00:39]} Be6 {[%emt 0:01:53]} 34. Rd8+ {[%emt 0:01:18]} Kg7 {[%emt 0:00:09]} 35. Ra8 {[%emt 0:00:27]} b4 {[%emt 0:03:55]} 36. axb4 {[%emt 0:00:14]} axb4 {[%emt 0:00:15]} 37. cxb4 {[%emt 0:00:01]} Rb5 {[%emt 0:02:02]} 38. Ra4 {[%emt 0:00:24]} h4 {[%emt 0:05:58]} 39. Ke2 {[%emt 0:01:18]} Bd7 {[%emt 0:03:08]} 40. Ra7 {[%emt 0:00:00]} Be6 {[%emt 0:00:00]} 41. Ra4 {[%emt 0:03:08]} Bd7 {[%emt 0:01:46]} 42. Ra7 {[%emt 0:13:27]} 1/2-1/2